[Event "NM-Senior Hurtig 2018"]
[Site "Frimurer Logen, Norway"]
[Date "2018.11.11"]
[Round "6.1"]
[White "Borch, Alex"]
[Black "Bjerke, Richard"]
[Result "1-0"]
[TimeControl "20 + 10"]
[WhiteElo "1728"]
[BlackElo "2094"]

1. e4 {[%clk 00:20:07]} {[%emt 00:00:02]} e6 {[%clk 00:20:04]} {[%emt
00:00:06]} 2. d4 {[%clk 00:20:12]} {[%emt 00:00:05]} d5 {[%clk 00:20:09]}
{[%emt 00:00:04]} 3. exd5 {[%clk 00:20:19]} {[%emt 00:00:04]} exd5 {[%clk
00:20:15]} {[%emt 00:00:03]} 4. Bd3 {[%clk 00:20:26]} {[%emt 00:00:04]} Nc6
{[%clk 00:20:13]} {[%emt 00:00:11]} 5. c3 {[%clk 00:20:33]} {[%emt 00:00:04]}
Bd6 {[%clk 00:19:37]} {[%emt 00:00:45]} 6. Ne2 {[%clk 00:20:04]} {[%emt
00:00:41]} Nge7 {[%clk 00:19:16]} {[%emt 00:00:29]} 7. Bg5 {[%clk 00:20:02]}
{[%emt 00:00:13]} O-O {[%clk 00:18:13]} {[%emt 00:01:12]} 8. Qc2 {[%clk
00:20:10]} {[%emt 00:00:03]} h6 {[%clk 00:18:17]} {[%emt 00:00:06]} 9. Bh4
{[%clk 00:20:17]} {[%emt 00:00:03]} Be6 {[%clk 00:18:02]} {[%emt 00:00:24]} 10.
f4 {[%clk 00:19:55]} {[%emt 00:00:34]} Qd7 {[%clk 00:17:31]} {[%emt 00:00:41]}
11. Nd2 {[%clk 00:18:55]} {[%emt 00:01:09]} Rae8 {[%clk 00:16:30]} {[%emt
00:01:10]} 12. O-O-O {[%clk 00:19:01]} {[%emt 00:00:05]} Bf5 {[%clk 00:16:02]}
{[%emt 00:00:37]} 13. Nf3 {[%clk 00:17:27]} {[%emt 00:01:45]} f6 {[%clk
00:14:54]} {[%emt 00:01:18]} 14. h3 {[%clk 00:17:17]} {[%emt 00:00:21]} Bxd3
{[%clk 00:14:46]} {[%emt 00:00:17]} 15. Qxd3 {[%clk 00:17:10]} {[%emt
00:00:17]} Nf5 {[%clk 00:14:06]} {[%emt 00:00:49]} 16. Bf2 {[%clk 00:17:17]}
{[%emt 00:00:03]} Re4 {[%clk 00:13:09]} {[%emt 00:01:06]} 17. g4 {[%clk
00:15:21]} {[%emt 00:02:08]} Rfe8 {[%clk 00:12:10]} {[%emt 00:01:08]} 18. Rde1
{[%clk 00:13:21]} {[%emt 00:02:11]} Ne3 {[%clk 00:10:44]} {[%emt 00:01:35]} 19.
Ne5 {[%clk 00:11:32]} {[%emt 00:02:01]} fxe5 {[%clk 00:09:59]} {[%emt
00:00:55]} 20. dxe5 {[%clk 00:10:17]} {[%emt 00:01:24]} Bxe5 {[%clk 00:09:28]}
{[%emt 00:00:40]} 21. Bxe3 {[%clk 00:09:49]} {[%emt 00:00:39]} Bf6 {[%clk
00:09:18]} {[%emt 00:00:20]} 22. Bd2 {[%clk 00:09:33]} {[%emt 00:00:26]} Na5
{[%clk 00:08:44]} {[%emt 00:00:43]} 23. Ng3 {[%clk 00:09:00]} {[%emt 00:00:45]}
Rxe1+ {[%clk 00:08:25]} {[%emt 00:00:28]} 24. Rxe1 {[%clk 00:09:08]} {[%emt
00:00:02]} Rxe1+ {[%clk 00:06:54]} {[%emt 00:01:41]} 25. Bxe1 {[%clk 00:09:16]}
{[%emt 00:00:02]} Nc4 {[%clk 00:06:21]} {[%emt 00:00:41]} 26. Qe2 {[%clk
00:07:38]} {[%emt 00:01:50]} b5 {[%clk 00:05:52]} {[%emt 00:00:38]} 27. Nh5
{[%clk 00:05:51]} {[%emt 00:01:58]} Be7 {[%clk 00:03:50]} {[%emt 00:02:11]} 28.
b3 {[%clk 00:05:40]} {[%emt 00:00:22]} Ba3+ {[%clk 00:03:10]} {[%emt 00:00:50]}
29. Kc2 {[%clk 00:05:17]} {[%emt 00:00:34]} Nd6 {[%clk 00:02:30]} {[%emt
00:00:48]} 30. Qe5 {[%clk 00:04:58]} {[%emt 00:00:30]} c6 {[%clk 00:02:10]}
{[%emt 00:00:30]} 31. Bf2 {[%clk 00:04:13]} {[%emt 00:00:55]} Qf7 {[%clk
00:01:42]} {[%emt 00:00:37]} 32. Bd4 {[%clk 00:03:59]} {[%emt 00:00:25]} Ne8
{[%clk 00:01:45]} {[%emt 00:00:07]} 33. b4 {[%clk 00:03:58]} {[%emt 00:00:11]}
a6 {[%clk 00:00:40]} {[%emt 00:01:14]} 34. Qe3 {[%clk 00:03:04]} {[%emt
00:01:05]} a5 {[%emt 00:00:41]} 35. Kb3 {[%emt 00:00:21]} axb4 36. cxb4 c5
{[%emt 00:00:02]} 37. bxc5 {[%emt 00:00:02]} Bxc5 {[%emt 00:00:02]} 1-0

[Event "NM-Senior Hurtig 2018"]
[Site "Frimurer Logen, Norway"]
[Date "2018.11.11"]
[Round "6.3"]
[White "Oldernes, Lars Arne"]
[Black "Stubrud, Jan Magne"]
[Result "1/2-1/2"]
[TimeControl "20 + 10"]
[WhiteElo "1697"]
[BlackElo "1684"]

1. d4 {[%clk 00:20:08]} f5 {[%clk 00:20:01]} {[%emt 00:00:11]} 2. c4 {[%clk
00:20:10]} {[%emt 00:00:08]} Nf6 {[%clk 00:20:05]} {[%emt 00:00:06]} 3. Nc3
{[%clk 00:20:18]} {[%emt 00:00:02]} b6 {[%clk 00:20:06]} {[%emt 00:00:09]} 4.
e3 {[%clk 00:19:58]} {[%emt 00:00:28]} Bb7 {[%clk 00:20:13]} {[%emt 00:00:04]}
5. Nf3 {[%clk 00:20:06]} {[%emt 00:00:02]} e6 {[%clk 00:20:20]} {[%emt
00:00:04]} 6. Be2 {[%clk 00:19:28]} {[%emt 00:00:47]} Be7 {[%clk 00:19:59]}
{[%emt 00:00:31]} 7. Ne5 {[%clk 00:18:24]} {[%emt 00:01:14]} d6 {[%clk
00:19:31]} {[%emt 00:00:39]} 8. Bh5+ {[%clk 00:18:09]} {[%emt 00:00:25]} g6
{[%clk 00:18:30]} {[%emt 00:01:11]} 9. Bf3 {[%clk 00:18:12]} {[%emt 00:00:05]}
Ne4 {[%clk 00:17:05]} {[%emt 00:01:36]} 10. Qa4+ {[%clk 00:13:16]} {[%emt
00:05:06]} c6 {[%clk 00:13:43]} {[%emt 00:03:33]} 11. Nd3 {[%clk 00:12:55]}
{[%emt 00:00:29]} Nxc3 {[%clk 00:12:28]} {[%emt 00:01:27]} 12. bxc3 {[%clk
00:13:02]} {[%emt 00:00:02]} O-O {[%clk 00:12:27]} {[%emt 00:00:11]} 13. Nf4
{[%clk 00:12:10]} {[%emt 00:01:01]} Qc8 {[%clk 00:11:57]} {[%emt 00:00:41]} 14.
Ba3 {[%clk 00:10:27]} {[%emt 00:01:53]} Re8 {[%clk 00:11:06]} {[%emt 00:01:01]}
15. Nd3 {[%clk 00:10:05]} {[%emt 00:00:32]} e5 {[%clk 00:09:27]} {[%emt
00:01:50]} 16. Be2 {[%clk 00:08:23]} {[%emt 00:01:51]} Nd7 {[%clk 00:07:17]}
{[%emt 00:02:20]} 17. Qb3 {[%clk 00:07:10]} {[%emt 00:01:22]} Kg7 {[%clk
00:07:04]} {[%emt 00:00:24]} 18. Rb1 {[%clk 00:07:02]} {[%emt 00:00:17]} Qc7
{[%clk 00:05:29]} {[%emt 00:01:46]} 19. c5 {[%clk 00:05:30]} {[%emt 00:01:42]}
d5 {[%clk 00:03:58]} {[%emt 00:01:42]} 20. cxb6 {[%clk 00:05:20]} {[%emt
00:00:19]} axb6 {[%clk 00:03:57]} {[%emt 00:00:12]} 21. Bxe7 {[%clk 00:05:16]}
{[%emt 00:00:14]} Rxe7 {[%clk 00:03:59]} {[%emt 00:00:07]} 22. O-O {[%clk
00:04:09]} {[%emt 00:01:17]} Ba6 {[%clk 00:03:51]} {[%emt 00:00:19]} 23. Rfe1
{[%clk 00:04:02]} {[%emt 00:00:17]} Bc4 {[%clk 00:03:42]} {[%emt 00:00:18]} 24.
Qb4 {[%clk 00:04:01]} {[%emt 00:00:10]} Ree8 {[%clk 00:03:25]} {[%emt
00:00:29]} 25. Nxe5 {[%clk 00:03:20]} {[%emt 00:00:51]} Nxe5 26. dxe5 {[%clk
00:03:29]} b5 {[%clk 00:02:18]} {[%emt 00:01:05]} 27. Bxc4 {[%clk 00:03:18]}
{[%emt 00:00:21]} Ra4 {[%clk 00:01:40]} {[%emt 00:00:48]} 28. Qb2 {[%clk
00:02:45]} {[%emt 00:00:43]} Rxc4 {[%clk 00:01:42]} {[%emt 00:00:08]} 29. f4
{[%clk 00:02:50]} {[%emt 00:00:04]} Qb6 {[%clk 00:01:46]} {[%emt 00:00:07]} 30.
Kf2 {[%clk 00:02:40]} {[%emt 00:00:19]} Rxf4+ {[%clk 00:01:54]} {[%emt
00:00:03]} 31. Ke2 {[%clk 00:02:05]} {[%emt 00:00:45]} Re4 {[%clk 00:01:59]}
{[%emt 00:00:04]} 32. Kf1 {[%clk 00:01:55]} {[%emt 00:00:20]} R8xe5 {[%clk
00:01:48]} {[%emt 00:00:21]} 33. Qa3 {[%clk 00:01:38]} {[%emt 00:00:27]} Rxe3
{[%clk 00:01:44]} {[%emt 00:00:15]} 34. Rxe3 {[%clk 00:01:09]} {[%emt
00:00:39]} Qxe3 {[%clk 00:01:40]} {[%emt 00:00:14]} 35. Qb2 {[%clk 00:01:18]}
{[%emt 00:00:01]} Qd3+ {[%clk 00:01:40]} {[%emt 00:00:10]} 36. Kg1 {[%clk
00:01:24]} {[%emt 00:00:03]} Re2 {[%clk 00:01:44]} {[%emt 00:00:06]} 37. Qc1
{[%clk 00:01:17]} {[%emt 00:00:17]} Rxa2 {[%clk 00:01:40]} {[%emt 00:00:15]} 38.
Qe1 {[%clk 00:01:10]} {[%emt 00:00:15]} Re2 {[%clk 00:01:42]} {[%emt 00:00:09]}
39. Qf1 {[%clk 00:01:13]} {[%emt 00:00:07]} Qe3+ {[%clk 00:01:33]} {[%emt
00:00:19]} 40. Kh1 {[%clk 00:01:19]} {[%emt 00:00:04]} f4 {[%clk 00:01:26]}
{[%emt 00:00:17]} 41. Ra1 {[%clk 00:01:24]} {[%emt 00:00:05]} Kh6 {[%clk
00:01:28]} {[%emt 00:00:08]} 42. g3 {[%clk 00:00:54]} {[%emt 00:00:41]} Rf2
{[%clk 00:01:03]} {[%emt 00:00:35]} 43. Qh3+ {[%clk 00:01:00]} {[%emt
00:00:03]} Kg7 {[%clk 00:01:05]} {[%emt 00:00:09]} 44. Qd7+ {[%clk 00:01:08]}
Kh6 {[%clk 00:00:59]} {[%emt 00:00:17]} 45. Qh3+ {[%clk 00:01:17]} {[%emt
00:00:01]} Kg7 {[%clk 00:00:58]} {[%emt 00:00:11]} 46. Qd7+ {[%clk 00:01:25]}
Kf6 {[%clk 00:01:07]} {[%emt 00:00:02]} 47. Qxc6+ {[%clk 00:01:34]} {[%emt
00:00:02]} Kf5 {[%clk 00:00:59]} {[%emt 00:00:18]} 48. Qxd5+ {[%clk 00:01:20]}
{[%emt 00:00:24]} Kg4 {[%clk 00:00:58]} {[%emt 00:00:10]} 49. Qd7+ {[%clk
00:01:16]} {[%emt 00:00:13]} Kg5 {[%clk 00:00:30]} {[%emt 00:00:39]} 50. gxf4+
{[%clk 00:00:32]} {[%emt 00:00:54]} Kxf4 {[%clk 00:00:22]} {[%emt 00:00:18]} 51.
Qd6+ {[%clk 00:00:21]} {[%emt 00:00:21]} Kf5 {[%clk 00:00:28]} {[%emt
00:00:05]} 52. Qd5+ {[%clk 00:00:22]} {[%emt 00:00:09]} Kf4 {[%clk 00:00:28]}
{[%emt 00:00:10]} 53. Qd6+ {[%clk 00:00:20]} {[%emt 00:00:11]} Kf5 {[%clk
00:00:36]} {[%emt 00:00:02]} 54. Qd5+ {[%clk 00:00:22]} {[%emt 00:00:08]} Kf4
{[%emt 00:00:21]} 1/2-1/2

[Event "NM-Senior Hurtig 2018"]
[Site "Frimurer Logen, Norway"]
[Date "2018.11.11"]
[Round "6.4"]
[White "Brobakken, Geir"]
[Black "Andersen, Guttorm"]
[Result "1-0"]
[TimeControl "20 + 10"]
[WhiteElo "1759"]
[BlackElo "1684"]

1. e4 {[%clk 00:20:07]} {[%emt 00:00:03]} e5 {[%clk 00:19:56]} {[%emt
00:00:14]} 2. Nc3 {[%clk 00:20:13]} {[%emt 00:00:04]} Nf6 {[%clk 00:19:26]}
{[%emt 00:00:40]} 3. Bc4 {[%clk 00:20:20]} {[%emt 00:00:02]} Bb4 {[%clk
00:19:28]} {[%emt 00:00:09]} 4. d3 {[%clk 00:19:49]} {[%emt 00:00:40]} Bxc3+
{[%clk 00:19:27]} {[%emt 00:00:12]} 5. bxc3 {[%clk 00:19:55]} {[%emt 00:00:05]}
d5 {[%clk 00:19:26]} {[%emt 00:00:10]} 6. exd5 {[%clk 00:19:27]} {[%emt
00:00:38]} Nxd5 {[%clk 00:19:28]} {[%emt 00:00:08]} 7. Ne2 {[%clk 00:18:15]}
{[%emt 00:01:22]} O-O {[%clk 00:19:13]} {[%emt 00:00:25]} 8. O-O {[%clk
00:18:03]} {[%emt 00:00:22]} Be6 {[%clk 00:18:05]} {[%emt 00:01:18]} 9. Rb1
{[%clk 00:17:05]} {[%emt 00:01:07]} Qc8 {[%clk 00:16:54]} {[%emt 00:01:23]} 10.
Bd2 {[%clk 00:14:52]} {[%emt 00:02:22]} Nb6 {[%clk 00:16:52]} {[%emt 00:00:12]}
11. Bb3 {[%clk 00:14:54]} {[%emt 00:00:07]} Nc6 {[%clk 00:16:53]} {[%emt
00:00:10]} 12. Ng3 {[%clk 00:14:12]} {[%emt 00:00:52]} Na5 {[%clk 00:15:41]}
{[%emt 00:01:23]} 13. f4 {[%clk 00:13:37]} {[%emt 00:00:44]} Nxb3 {[%clk
00:15:37]} {[%emt 00:00:14]} 14. axb3 {[%clk 00:13:43]} {[%emt 00:00:04]} exf4
{[%clk 00:15:27]} {[%emt 00:00:20]} 15. Rxf4 {[%clk 00:13:02]} {[%emt
00:00:51]} Nd5 {[%clk 00:15:19]} {[%emt 00:00:18]} 16. Rf2 {[%clk 00:12:54]}
{[%emt 00:00:18]} Qd7 {[%clk 00:14:58]} {[%emt 00:00:31]} 17. d4 {[%clk
00:12:08]} {[%emt 00:00:56]} Nf6 {[%clk 00:14:06]} {[%emt 00:01:02]} 18. h3
{[%clk 00:10:32]} {[%emt 00:01:46]} b5 {[%clk 00:13:49]} {[%emt 00:00:27]} 19.
Bg5 {[%clk 00:10:18]} {[%emt 00:00:24]} Nd5 {[%clk 00:13:26]} {[%emt 00:00:34]}
20. Qd2 {[%clk 00:09:48]} {[%emt 00:00:40]} f6 {[%clk 00:13:01]} {[%emt
00:00:34]} 21. Be3 {[%clk 00:09:38]} {[%emt 00:00:20]} Qc6 {[%clk 00:11:38]}
{[%emt 00:01:34]} 22. Ne4 {[%clk 00:09:39]} {[%emt 00:00:09]} Nxe3 {[%clk
00:11:29]} {[%emt 00:00:19]} 23. Qxe3 {[%clk 00:09:44]} {[%emt 00:00:04]} Bd5
{[%clk 00:11:26]} {[%emt 00:00:14]} 24. Nc5 {[%clk 00:09:51]} {[%emt 00:00:03]}
Rae8 {[%clk 00:11:23]} {[%emt 00:00:12]} 25. Qg3 {[%clk 00:09:40]} {[%emt
00:00:21]} Re7 {[%clk 00:10:42]} {[%emt 00:00:50]} 26. Ra1 {[%clk 00:09:49]}
{[%emt 00:00:02]} Qb6 {[%clk 00:10:36]} {[%emt 00:00:16]} 27. Ra6 {[%clk
00:09:25]} {[%emt 00:00:34]} Qb8 {[%clk 00:10:40]} {[%emt 00:00:07]} 28. Raxf6
{[%clk 00:09:22]} {[%emt 00:00:13]} Rxf6 {[%clk 00:08:29]} {[%emt 00:02:20]} 29.
Rxf6 {[%clk 00:09:30]} {[%emt 00:00:03]} Qe8 {[%clk 00:08:14]} {[%emt
00:00:25]} 30. Rf2 {[%clk 00:09:18]} {[%emt 00:00:22]} c6 {[%clk 00:07:55]}
{[%emt 00:00:29]} 31. Nd3 {[%clk 00:08:56]} {[%emt 00:00:31]} a5 {[%clk
00:07:54]} {[%emt 00:00:11]} 32. Ne5 {[%clk 00:07:20]} {[%emt 00:01:46]} a4
{[%clk 00:07:47]} {[%emt 00:00:17]} 33. c4 {[%clk 00:07:18]} {[%emt 00:00:12]}
bxc4 {[%clk 00:07:28]} {[%emt 00:00:30]} 34. bxc4 {[%clk 00:07:26]} {[%emt
00:00:01]} Be4 {[%clk 00:07:36]} {[%emt 00:00:02]} 35. Qa3 {[%clk 00:07:04]}
{[%emt 00:00:32]} h6 {[%clk 00:05:40]} {[%emt 00:02:06]} 36. Qxa4 {[%clk
00:06:53]} {[%emt 00:00:22]} c5 {[%clk 00:05:39]} {[%emt 00:00:11]} 37. Qxe8+
{[%clk 00:06:49]} {[%emt 00:00:09]} 1-0

[Event "NM-Senior Hurtig 2018"]
[Site "Frimurer Logen, Norway"]
[Date "2018.11.11"]
[Round "6.5"]
[White "Antonsen, Frode"]
[Black "Irandoust, Babak"]
[Result "1-0"]
[TimeControl "20 + 10"]
[WhiteElo "1656"]
[BlackElo "1615"]

1. Nf3 {[%clk 00:20:05]} {[%emt 00:00:04]} Nc6 {[%clk 00:20:04]} {[%emt
00:00:07]} 2. d4 {[%clk 00:20:05]} {[%emt 00:00:10]} d5 {[%clk 00:20:07]}
{[%emt 00:00:08]} 3. g3 {[%clk 00:20:03]} {[%emt 00:00:11]} Nf6 {[%clk
00:19:53]} {[%emt 00:00:24]} 4. Bg2 {[%clk 00:20:08]} {[%emt 00:00:05]} Bg4
{[%clk 00:19:52]} {[%emt 00:00:12]} 5. O-O {[%clk 00:19:56]} {[%emt 00:00:21]}
Bxf3 {[%clk 00:19:46]} {[%emt 00:00:17]} 6. Bxf3 {[%clk 00:20:00]} {[%emt
00:00:06]} h5 {[%clk 00:19:34]} {[%emt 00:00:22]} 7. h4 {[%clk 00:20:03]}
{[%emt 00:00:06]} e5 {[%clk 00:19:03]} {[%emt 00:00:42]} 8. dxe5 {[%clk
00:19:58]} {[%emt 00:00:15]} Nxe5 {[%clk 00:19:11]} {[%emt 00:00:02]} 9. Bg5
{[%clk 00:18:14]} {[%emt 00:01:53]} Qd6 {[%clk 00:18:32]} {[%emt 00:00:49]} 10.
Bxf6 {[%clk 00:18:05]} {[%emt 00:00:19]} gxf6 {[%clk 00:18:41]} {[%emt
00:00:02]} 11. Qxd5 {[%clk 00:18:08]} {[%emt 00:00:07]} O-O-O {[%emt 00:00:24]}
12. Qxb7+ {[%emt 00:00:02]} Kd7 {[%clk 00:18:22]} {[%emt 00:00:03]} 13. Nc3
{[%clk 00:17:32]} {[%emt 00:00:46]} Nxf3+ {[%clk 00:16:57]} {[%emt 00:01:34]}
14. Qxf3 {[%clk 00:17:36]} {[%emt 00:00:06]} Qe6 {[%clk 00:16:36]} {[%emt
00:00:31]} 15. Rad1+ {[%clk 00:17:27]} {[%emt 00:00:19]} Bd6 {[%clk 00:16:44]}
{[%emt 00:00:02]} 16. Ne4 {[%clk 00:17:08]} {[%emt 00:00:29]} Ke7 {[%clk
00:16:14]} {[%emt 00:00:40]} 17. Nxd6 {[%clk 00:17:11]} {[%emt 00:00:08]} cxd6
{[%clk 00:16:04]} {[%emt 00:00:20]} 18. b3 {[%clk 00:16:36]} {[%emt 00:00:45]}
Rhg8 {[%clk 00:15:37]} {[%emt 00:00:37]} 19. Rd3 {[%clk 00:15:49]} {[%emt
00:00:56]} Qg4 {[%clk 00:14:30]} {[%emt 00:01:17]} 20. Qxg4 {[%clk 00:15:00]}
{[%emt 00:00:59]} hxg4 {[%clk 00:14:23]} {[%emt 00:00:17]} 21. e4 {[%clk
00:14:00]} {[%emt 00:01:10]} Ke6 {[%clk 00:14:19]} {[%emt 00:00:15]} 22. Rfd1
{[%clk 00:13:38]} {[%emt 00:00:30]} Ke5 {[%clk 00:13:34]} {[%emt 00:00:56]} 23.
Kg2 {[%clk 00:13:34]} {[%emt 00:00:14]} Rh8 {[%clk 00:13:22]} {[%emt 00:00:22]}
24. c4 {[%clk 00:13:35]} {[%emt 00:00:09]} Rd7 {[%clk 00:11:22]} {[%emt
00:02:11]} 25. c5 {[%clk 00:13:42]} {[%emt 00:00:03]} Kxe4 {[%clk 00:11:10]}
{[%emt 00:00:22]} 26. Rxd6 {[%clk 00:13:48]} {[%emt 00:00:03]} Rxd6 {[%clk
00:10:59]} {[%emt 00:00:22]} 27. Rxd6 {[%clk 00:13:54]} {[%emt 00:00:04]} Ke5
{[%clk 00:11:06]} {[%emt 00:00:03]} 28. f4+ {[%clk 00:13:56]} {[%emt 00:00:08]}
gxf3+ {[%clk 00:11:02]} {[%emt 00:00:13]} 29. Kxf3 {[%clk 00:14:03]} {[%emt
00:00:03]} Rc8 {[%clk 00:10:59]} {[%emt 00:00:13]} 30. b4 {[%clk 00:14:10]}
{[%emt 00:00:03]} a5 {[%clk 00:11:01]} {[%emt 00:00:08]} 31. a3 {[%clk
00:14:19]} {[%emt 00:00:02]} axb4 {[%clk 00:11:09]} {[%emt 00:00:02]} 32. axb4
{[%clk 00:14:27]} {[%emt 00:00:01]} Rb8 {[%clk 00:11:02]} {[%emt 00:00:18]} 33.
Rb6 {[%clk 00:14:35]} {[%emt 00:00:01]} Ra8 {[%clk 00:11:11]} 34. c6 {[%clk
00:14:28]} {[%emt 00:00:18]} Ra3+ {[%clk 00:10:38]} {[%emt 00:00:43]} 35. Kg4
{[%clk 00:14:32]} {[%emt 00:00:04]} f5+ {[%clk 00:10:46]} {[%emt 00:00:03]} 36.
Kh5 {[%clk 00:14:38]} {[%emt 00:00:05]} Rxg3 {[%clk 00:10:53]} {[%emt
00:00:03]} 37. b5 {[%clk 00:14:42]} {[%emt 00:00:05]} Kd6 {[%clk 00:10:48]}
{[%emt 00:00:15]} 38. Rb7 {[%clk 00:14:48]} {[%emt 00:00:05]} Rg7 {[%clk
00:10:03]} {[%emt 00:00:54]} 39. Kh6 {[%clk 00:14:41]} {[%emt 00:00:17]} Rg4
{[%clk 00:09:25]} {[%emt 00:00:49]} 40. h5 {[%clk 00:14:44]} {[%emt 00:00:07]}
Ke6 {[%clk 00:08:52]} {[%emt 00:00:42]} 41. b6 {[%clk 00:14:33]} {[%emt
00:00:21]} Rg8 {[%clk 00:08:21]} {[%emt 00:00:41]} 42. Kh7 {[%clk 00:14:35]}
{[%emt 00:00:09]} Rg5 {[%clk 00:08:14]} {[%emt 00:00:17]} 43. h6 {[%clk
00:14:43]} {[%emt 00:00:02]} f4 {[%clk 00:08:00]} {[%emt 00:00:24]} 44. Ra7
{[%clk 00:14:36]} {[%emt 00:00:17]} Rb5 {[%clk 00:07:43]} {[%emt 00:00:26]} 45.
c7 {[%clk 00:14:34]} {[%emt 00:00:13]} Kd7 {[%clk 00:07:45]} {[%emt 00:00:08]}
46. Kg7 {[%clk 00:14:33]} {[%emt 00:00:11]} f5 {[%clk 00:07:53]} {[%emt
00:00:02]} 47. h7 {[%clk 00:14:41]} {[%emt 00:00:02]} 1-0

[Event "NM-Senior Hurtig 2018"]
[Site "Frimurer Logen, Norway"]
[Date "2018.11.11"]
[Round "6.6"]
[White "Ugland, Torge"]
[Black "Ringstad, Åge"]
[Result "1-0"]
[TimeControl "20 + 10"]
[WhiteElo "1646"]
[BlackElo "1461"]

1. e4 {[%clk 00:20:05]} {[%emt 00:00:04]} e6 {[%clk 00:20:10]} {[%emt
00:00:02]} 2. d4 {[%clk 00:20:12]} {[%emt 00:00:03]} Nf6 {[%clk 00:20:16]}
{[%emt 00:00:04]} 3. Nc3 {[%clk 00:20:09]} {[%emt 00:00:13]} Bb4 {[%clk
00:20:21]} {[%emt 00:00:05]} 4. f3 {[%clk 00:19:31]} {[%emt 00:00:47]} O-O
{[%clk 00:20:28]} {[%emt 00:00:03]} 5. Be3 {[%clk 00:19:11]} {[%emt 00:00:31]}
Bxc3+ {[%clk 00:20:15]} {[%emt 00:00:23]} 6. bxc3 {[%clk 00:19:18]} {[%emt
00:00:02]} d6 {[%clk 00:20:22]} {[%emt 00:00:04]} 7. Bd3 {[%clk 00:18:48]}
{[%emt 00:00:39]} e5 {[%clk 00:20:17]} {[%emt 00:00:16]} 8. Ne2 {[%clk
00:18:38]} {[%emt 00:00:19]} h6 {[%clk 00:19:57]} {[%emt 00:00:31]} 9. O-O
{[%clk 00:18:23]} {[%emt 00:00:24]} Nbd7 {[%clk 00:20:05]} {[%emt 00:00:02]} 10.
Qe1 {[%clk 00:17:53]} {[%emt 00:00:40]} Re8 {[%clk 00:20:02]} {[%emt 00:00:13]}
11. Qh4 {[%clk 00:16:47]} {[%emt 00:01:15]} Nf8 {[%clk 00:19:59]} {[%emt
00:00:15]} 12. Qg3 {[%clk 00:16:13]} {[%emt 00:00:41]} Ng6 {[%clk 00:20:04]}
{[%emt 00:00:08]} 13. Bc4 {[%clk 00:15:50]} {[%emt 00:00:32]} Nh5 {[%clk
00:19:27]} {[%emt 00:00:46]} 14. Qxg6 {[%clk 00:14:17]} {[%emt 00:01:44]} Be6
{[%clk 00:18:08]} {[%emt 00:01:30]} 15. Bxe6 {[%clk 00:13:26]} {[%emt
00:01:01]} Rxe6 {[%clk 00:17:57]} {[%emt 00:00:21]} 16. Qxh5 {[%clk 00:13:27]}
{[%emt 00:00:08]} Rg6 {[%clk 00:18:05]} {[%emt 00:00:03]} 17. f4 {[%clk
00:12:29]} {[%emt 00:01:07]} Qd7 {[%clk 00:17:30]} {[%emt 00:00:46]} 18. f5
{[%clk 00:12:17]} {[%emt 00:00:21]} Rf6 {[%clk 00:16:52]} {[%emt 00:00:48]} 19.
Rf3 {[%clk 00:11:19]} {[%emt 00:01:07]} Kh7 {[%clk 00:16:48]} {[%emt 00:00:16]}
20. Raf1 {[%clk 00:10:23]} {[%emt 00:01:05]} Re8 {[%clk 00:16:31]} {[%emt
00:00:27]} 21. g4 {[%clk 00:10:27]} {[%emt 00:00:06]} Kg8 {[%clk 00:16:08]}
{[%emt 00:00:34]} 22. g5 {[%clk 00:09:51]} {[%emt 00:00:45]} g6 {[%clk
00:15:55]} {[%emt 00:00:24]} 23. Qxh6 {[%clk 00:09:55]} {[%emt 00:00:06]} 1-0